fUSD/lending_fUSD_20250623
["ID","MTS","AMOUNT","RATE_DAILY","PERIOD"]
[367228059,1750708236910,-490.0,0.00022524,2]
[367228060,1750708236919,-750.35,0.00022524,2]
[367228061,1750708236928,-681.09,0.00022524,2]
[367228062,1750708236937,-490.0,0.00022524,2]
[367228063,1750708236947,-490.0,0.00022524,2]
[367228064,1750708236957,-490.0,0.00022524,2]
[367228065,1750708236966,-1615.0,0.00022524,2]
[367228066,1750708236976,-490.0,0.00022524,2]
[367228067,1750708236985,-696.81,0.00022524,2]
[367228068,1750708236994,-490.0,0.00022524,2]
[367228069,1750708237004,-559.6,0.00022524,2]
[367228070,1750708237013,-490.0,0.00022524,2]
[367228071,1750708237024,-490.0,0.00022524,2]
[367228072,1750708237033,-6580.87,0.00022524,2]
[367228073,1750708237043,-490.0,0.00022524,2]
[367228074,1750708237054,-521.07,0.00022524,2]
[367228075,1750708237064,-896.05,0.00022524,2]
[367228076,1750708237075,-1030.29,0.00022524,2]
[367228077,1750708237084,-727.97,0.00022524,2]
[367228078,1750708237092,-792.71,0.00022524,2]
[367228079,1750708237103,-692.24,0.00022524,2]
[367228080,1750708237113,-490.0,0.00022524,2]
[367228081,1750708237122,-734.61,0.00022524,2]
[367228082,1750708237131,-490.0,0.00022524,2]
[367228083,1750708237140,-549.86034567,0.00022524,2]
[367228084,1750708237150,-490.0,0.00022524,2]
[367228085,1750708237159,-785.04,0.00022524,2]
[367228086,1750708237169,-564.5,0.00022524,2]
[367228087,1750708237178,-490.0,0.00022524,2]
[367228088,1750708237187,-774.73,0.00022524,2]
[367228089,1750708237197,-2618.72,0.00022524,2]
[367228090,1750708237207,-490.0,0.00022524,2]
[367228091,1750708237217,-758.83,0.00022524,2]
[367228092,1750708237226,-1013.68,0.00022524,2]
[367228093,1750708237235,-631.91,0.00022524,2]
[367228094,1750708237244,-490.0,0.00022524,2]
[367228095,1750708237253,-490.0,0.00022524,2]
[367228096,1750708237263,-490.0,0.00022524,2]
[367228097,1750708237272,-490.0,0.00022524,2]
[367228098,1750708237281,-1018.31,0.00022524,2]
[367228099,1750708237291,-490.0,0.00022524,2]
[367228100,1750708237300,-4167.62,0.00022524,2]
[367228101,1750708237309,-1036.96,0.00022524,2]
[367228102,1750708237318,-1700.6,0.00022524,2]
[367228103,1750708237327,-490.0,0.00022524,2]
[367228104,1750708237337,-490.0,0.00022524,2]
[367228105,1750708237346,-562.75,0.00022524,2]
[367228106,1750708237355,-764.72,0.00022524,2]
[367228107,1750708237364,-1698.17,0.00022524,2]
[367228108,1750708237373,-490.0,0.00022524,2]
[367228109,1750708237382,-490.0,0.00022524,2]
[367228110,1750708237391,-899.93,0.00022524,2]
[367228112,1750708237402,-4598.1,0.00022524,2]
[367228113,1750708237411,-729.7,0.00022524,2]
[367228114,1750708237420,-598.18,0.00022524,2]
[367228115,1750708237429,-490.0,0.00022524,2]
[367228116,1750708237439,-621.52,0.00022524,2]
[367228117,1750708237448,-151.825368,0.00022524,7]
[367228118,1750708237457,-507.68,0.00022524,2]
[367228119,1750708237466,-151.0,0.00022525,2]
[367228121,1750708237475,-14295.25683636,0.00022543,2]
[367228123,1750708237485,-150.0,0.00022547,2]
[367228125,1750708237494,-150.0,0.0002255,2]
[367228127,1750708237504,-150.01,0.00022553,2]
[367228129,1750708237512,-150.99,0.00022562,2]
[367228131,1750708237522,-150.99,0.00022562,2]
[367228132,1750708237531,-316.81,0.00022562,2]
[367228133,1750708237542,-9999.99,0.00022562,2]
[367228134,1750708237551,-1000.0,0.00022569,2]
[367228135,1750708237562,-150.0,0.0002257,2]
[367228136,1750708237572,-150.0,0.0002258,2]
[367228137,1750708237582,-3939.0,0.00022582,2]
[367228138,1750708237591,-151.85632,0.00022584,7]
[367228139,1750708237600,-221.96718704,0.00022585,2]
[367228140,1750708237611,-702.40838956,0.00022593,2]
[367228141,1750708237620,-4076.16719492,0.000226,7]
[367228142,1750708237629,-4076.16719475,0.000226,7]
[367228143,1750708237639,-4076.16719475,0.000226,7]
[367228144,1750708237647,-4076.16719475,0.000226,7]
[367228145,1750708237656,-19136.76,0.000226,2]
[367228146,1750708237665,-150.0,0.00022613,2]
[367228147,1750708237675,-168.0,0.00022622,2]
[367228148,1750708237684,-508.2,0.00022622,2]
[367228149,1750708237694,-1000.0,0.00022625,2]
[367228150,1750708237703,-150.0,0.00022629,2]
[367228151,1750708237712,-150.0,0.00022631,2]
[367228152,1750708237721,-150.0,0.00022642,2]
[367228153,1750708237730,-5650.03184496,0.0002265,2]
[367228154,1750708237740,-150.0,0.00022657,2]
[367228155,1750708237749,-702.40838956,0.00022686,2]
[367228156,1750708237760,-1050.03933,0.00022691,4]
[367228157,1750708237770,-5000.0,0.00022698,2]
[367228158,1750708237779,-166.6,0.00022703,2]
[367228159,1750708237788,-168.0,0.00022704,2]
[367228160,1750708237798,-150.0,0.00022715,2]
[367228161,1750708237808,-14295.25683636,0.00022719,2]
[367228162,1750708237818,-150.0,0.00022726,2]
[367228163,1750708237829,-150.0,0.00022739,2]
[367228165,1750708237838,-169.33198253,0.0002274,2]
[367228167,1750708237848,-150.0,0.00022747,2]
[367228168,1750708237857,-150.0,0.00022748,2]
[367228169,1750708237868,-150.0,0.00022756,2]
[367228170,1750708237877,-168.0,0.00022757,2]
[367228171,1750708237886,-431.60190461,0.00022759,2]
[367228172,1750708237895,-150.0,0.0002276,2]
[367228173,1750708237904,-150.0,0.00022764,2]
[367228174,1750708237913,-490.0,0.00022764,2]
[367228175,1750708237922,-362.59610965,0.00022764,2]
[367228176,1750708237932,-490.0,0.00022764,2]
[367228177,1750708237941,-490.0,0.00022764,2]
[367228178,1750708237951,-1000.0,0.00022764,2]
[367228179,1750708237960,-150.0,0.00022766,2]
[367228180,1750708237970,-150.0,0.00022767,2]
[367228181,1750708237979,-150.0,0.00022773,2]
[367228183,1750708237988,-151.0,0.00022773,7]
[367228185,1750708237997,-151.34453,0.00022773,7]
[367228187,1750708238011,-181.99292365,0.00022773,2]
[367228189,1750708238020,-291.271541,0.00022773,7]
[367228191,1750708238029,-291.271541,0.00022773,7]
[367228193,1750708238038,-287.06363996,0.00022776,2]
[367228195,1750708238047,-181.99292365,0.00022776,2]
[367228197,1750708238057,-490.0,0.00022777,2]
[367228199,1750708238066,-490.0,0.00022777,2]
[367228201,1750708238077,-843.83,0.00022777,2]
[367228203,1750708238086,-490.0,0.00022777,2]
[367228205,1750708238095,-490.0,0.00022777,2]
[367228207,1750708238108,-490.0,0.00022777,2]
[367228209,1750708238117,-905.53,0.00022777,2]
[367228211,1750708238126,-684.29,0.00022777,2]
[367228213,1750708238135,-490.0,0.00022777,2]
[367228215,1750708238146,-490.0,0.00022777,2]
[367228217,1750708238155,-490.0,0.00022777,2]
[367228219,1750708238164,-713.38,0.00022777,2]
[367228221,1750708238174,-490.0,0.00022777,2]
[367228223,1750708238185,-692.56,0.00022777,2]
[367228225,1750708238194,-490.0,0.00022777,2]
[367228227,1750708238204,-661.51,0.00022777,2]
[367228229,1750708238213,-490.0,0.00022777,2]
[367228231,1750708238222,-490.0,0.00022777,2]
[367228233,1750708238232,-637.42,0.00022777,2]
[367228235,1750708238241,-587.2,0.00022777,2]
[367228237,1750708238251,-490.0,0.00022777,2]
[367228239,1750708238260,-490.0,0.00022777,2]
[367228241,1750708238269,-833.06,0.00022777,2]
[367228243,1750708238279,-574.47,0.00022777,2]
[367228245,1750708238289,-689.42,0.00022777,2]
[367228247,1750708238299,-626.75605606,0.00022777,2]
[367228249,1750708238309,-490.0,0.00022777,2]
[367228250,1750708238318,-490.0,0.00022777,2]
[367228252,1750708238328,-490.0,0.00022777,2]
[367228255,1750708238338,-490.0,0.00022777,2]
[367228257,1750708238347,-490.0,0.00022777,2]
[367228259,1750708238357,-490.0,0.00022777,2]
[367228261,1750708238367,-490.0,0.00022777,2]
[367228263,1750708238376,-939.84,0.00022777,2]
[367228264,1750708238385,-490.0,0.00022777,2]
[367228266,1750708238395,-574.39,0.00022777,2]
[367228268,1750708238405,-490.0,0.00022777,2]
[367228270,1750708238414,-490.0,0.00022777,2]
[367228272,1750708238423,-490.0,0.00022777,2]
[367228274,1750708238434,-490.0,0.00022777,2]
[367228276,1750708238443,-742.15,0.00022777,2]
[367228278,1750708238453,-862.91,0.00022777,2]
[367228280,1750708238462,-490.0,0.00022777,2]
[367228282,1750708238471,-490.0,0.00022777,2]
[367228284,1750708238481,-873.74,0.00022777,2]
[367228286,1750708238490,-752.68,0.00022777,2]
[367228288,1750708238499,-849.57,0.00022777,2]
[367228290,1750708238508,-490.0,0.00022777,2]
[367228292,1750708238517,-657.7,0.00022777,2]
[367228294,1750708238527,-490.0,0.00022777,2]
[367228296,1750708238536,-490.0,0.00022777,2]
[367228298,1750708238546,-490.0,0.00022777,2]
[367228300,1750708238555,-490.0,0.00022777,2]
[367228302,1750708238564,-543.08,0.00022777,2]
[367228304,1750708238574,-879.48,0.00022777,2]
[367228306,1750708238583,-1073.34,0.00022777,2]
[367228308,1750708238593,-861.82,0.00022777,2]
[367228310,1750708238602,-854.68,0.00022777,2]
[367228312,1750708238612,-840.35,0.00022777,2]
[367228314,1750708238621,-490.0,0.00022777,2]
[367228316,1750708238632,-151.0,0.00022777,7]
[367228318,1750708238642,-151.0,0.00022777,7]
[367228320,1750708238652,-239.581606,0.00022777,7]
[367228322,1750708238661,-151.0,0.00022777,7]
[367228324,1750708238671,-898.31,0.00022777,2]
[367228326,1750708238681,-863.99,0.00022777,2]
[367228328,1750708238691,-151.0,0.00022777,7]
[367228330,1750708238700,-490.0,0.00022777,2]
[367228332,1750708238710,-490.0,0.00022777,2]
[367228335,1750708238720,-316.76812827,0.00022777,2]
[367228337,1750708238730,-490.0,0.00022777,2]
[367228338,1750708238739,-151.0,0.00022777,7]
[367228340,1750708238749,-678.96,0.00022777,2]
[367228343,1750708238758,-993.62,0.00022777,2]
[367228345,1750708238769,-151.48942,0.00022777,7]
[367228347,1750708238779,-1408.41,0.00022777,2]
[367228349,1750708238788,-630.29231362,0.00022778,2]
[367228351,1750708238798,-15036.5428,0.00022778,2]
[367228353,1750708238808,-702.40838956,0.00022778,2]
[367228355,1750708238817,-490.0,0.00022798,2]
[367228372,1750708238974,-490.0,0.00022798,2]
[367228374,1750708238984,-490.0,0.00022798,2]
[367228377,1750708238994,-490.0,0.00022798,2]
[367228379,1750708239003,-490.0,0.00022798,2]
[367228381,1750708239016,-490.0,0.00022798,2]
[367228383,1750708239025,-490.0,0.00022798,2]
[367228385,1750708239034,-490.0,0.00022798,2]
[367228387,1750708239044,-490.0,0.00022798,2]
[367228389,1750708239053,-490.0,0.00022798,2]
[367228391,1750708239063,-490.0,0.00022798,2]
[367228393,1750708239074,-490.0,0.00022798,2]
[367228395,1750708239085,-250.0,0.00022798,2]
[367228397,1750708239095,-490.0,0.00022798,2]
[367228399,1750708239107,-625.50303864,0.00022798,2]
[367228401,1750708239118,-490.0,0.00022798,2]
[367228403,1750708239127,-490.0,0.00022798,2]
[367228405,1750708239137,-356.438988,0.00022798,2]
[367228407,1750708239148,-490.0,0.00022798,2]
[367228409,1750708239158,-599.61,0.00022798,2]
[367228411,1750708239167,-522.38,0.00022798,2]
[367228414,1750708239178,-490.0,0.00022798,2]
[367228416,1750708239189,-490.0,0.00022798,2]
[367228418,1750708239199,-490.0,0.00022798,2]
[367228420,1750708239208,-256.079149,0.00022798,2]
[367228422,1750708239218,-490.0,0.00022798,2]
[367228424,1750708239227,-637.74,0.00022798,2]
[367228426,1750708239237,-508.16,0.00022798,2]
[367228428,1750708239246,-490.0,0.00022798,2]
[367228430,1750708239256,-490.0,0.00022798,2]
[367228432,1750708239266,-833.61,0.00022798,2]
[367228434,1750708239275,-540.88,0.00022798,2]
[367228436,1750708239284,-854.641924,0.00022798,2]
[367228438,1750708239294,-490.0,0.00022798,2]
[367228440,1750708239303,-709.97,0.00022798,2]
[367228442,1750708239312,-1045.75,0.00022798,2]
[367228444,1750708239322,-571.24,0.00022798,2]
[367228446,1750708239332,-490.0,0.00022798,2]
[367228448,1750708239342,-490.0,0.00022798,2]
[367228450,1750708239351,-5936.45,0.00022798,2]
[367228452,1750708239361,-490.0,0.00022798,2]
[367228455,1750708239371,-1306.5,0.00022798,2]
[367228457,1750708239380,-745.37,0.00022798,2]
[367228459,1750708239390,-490.0,0.00022798,2]
[367228461,1750708239400,-490.0,0.00022798,2]
[367228463,1750708239410,-1064.02,0.00022798,2]
[367228465,1750708239419,-735.07,0.00022798,2]
[367228467,1750708239429,-490.0,0.00022798,2]
[367228469,1750708239438,-490.0,0.00022798,2]
[367228470,1750708239448,-490.0,0.00022798,2]
[367228472,1750708239457,-883.38,0.00022798,2]
[367228474,1750708239466,-490.0,0.00022798,2]
[367228476,1750708239476,-750.35,0.00022798,2]
[367228478,1750708239485,-681.09,0.00022798,2]
[367228481,1750708239496,-350.49450158,0.00022798,2]
[367228483,1750708239506,-490.0,0.00022798,2]
[367228487,1750708239516,-490.0,0.00022798,2]
[367228490,1750708239525,-1615.0,0.00022798,2]
[367228493,1750708239535,-490.0,0.00022798,2]
[367228498,1750708239545,-696.81,0.00022798,2]
[367228501,1750708239555,-490.0,0.00022798,2]
[367228503,1750708239564,-559.6,0.00022798,2]
[367228505,1750708239575,-490.0,0.00022798,2]
[367228507,1750708239584,-490.0,0.00022798,2]
[367228509,1750708239594,-6580.87,0.00022798,2]
[367228511,1750708239603,-490.0,0.00022798,2]
[367228513,1750708239612,-521.07,0.00022798,2]
[367228515,1750708239622,-896.05,0.00022798,2]
[367228517,1750708239633,-1030.29,0.00022798,2]
[367228519,1750708239642,-727.97,0.00022798,2]
[367228521,1750708239652,-792.71,0.00022798,2]
[367228523,1750708239662,-692.24,0.00022798,2]
[367228525,1750708239671,-490.0,0.00022798,2]
[367228527,1750708239681,-734.61,0.00022798,2]
[367228529,1750708239690,-490.0,0.00022798,2]
[367228531,1750708239700,-490.0,0.00022798,2]
[367228533,1750708239709,-785.04,0.00022798,2]
[367228535,1750708239718,-564.5,0.00022798,2]
[367228537,1750708239728,-490.0,0.00022798,2]
[367228539,1750708239737,-774.73,0.00022798,2]
[367228541,1750708239747,-2618.72,0.00022798,2]
[367228543,1750708239756,-490.0,0.00022798,2]
[367228545,1750708239766,-758.83,0.00022798,2]
[367228547,1750708239775,-1013.68,0.00022798,2]
[367228549,1750708239784,-631.91,0.00022798,2]
[367228551,1750708239793,-490.0,0.00022798,2]
[367228553,1750708239803,-490.0,0.00022798,2]
[367228555,1750708239812,-490.0,0.00022798,2]
[367228557,1750708239821,-490.0,0.00022798,2]
[367228559,1750708239831,-1018.31,0.00022798,2]
[367228561,1750708239841,-490.0,0.00022798,2]
[367228563,1750708239851,-4167.62,0.00022798,2]
[367228565,1750708239860,-1036.96,0.00022798,2]
[367228567,1750708239870,-1700.6,0.00022798,2]
[367228569,1750708239887,-490.0,0.00022798,2]
[367228571,1750708239899,-490.0,0.00022798,2]
[367228573,1750708239908,-562.75,0.00022798,2]
[367228575,1750708239917,-764.72,0.00022798,2]
[367228577,1750708239927,-1698.17,0.00022798,2]
[367228579,1750708239937,-490.0,0.00022798,2]
[367228581,1750708239945,-490.0,0.00022798,2]
[367228583,1750708239955,-899.93,0.00022798,2]
[367228585,1750708239965,-4598.1,0.00022798,2]
[367228587,1750708239975,-729.7,0.00022798,2]
[367228589,1750708239985,-598.18,0.00022798,2]
[367228591,1750708239994,-490.0,0.00022798,2]
[367228593,1750708240004,-621.52,0.00022798,2]
[367228595,1750708240014,-507.68,0.00022798,2]
[367228597,1750708240023,-500.0,0.00022799,2]
[367228599,1750708240033,-50940.5727625,0.000228,2]
[367228601,1750708240042,-151.0,0.000228,7]
[367228604,1750708240052,-151.244154,0.000228,7]
[367228605,1750708240062,-151.0,0.000228,7]
[367228608,1750708240072,-151.0,0.000228,7]
[367228610,1750708240082,-151.0,0.000228,7]
[367228611,1750708240092,-291.271541,0.000228,7]
[367228613,1750708240102,-291.271541,0.000228,7]
[367228615,1750708240114,-151.0,0.0002286,7]
[367228616,1750708240123,-151.0,0.0002286,7]
[367228617,1750708240133,-151.0,0.0002286,7]
[367228618,1750708240145,-151.0,0.0002286,7]
[367228619,1750708240156,-272.047402,0.0002286,7]
[367228620,1750708240167,-291.271541,0.0002286,7]
[367228621,1750708240177,-291.271541,0.0002286,7]
[367228622,1750708240189,-167.74196409,0.00022863,2]
[367228623,1750708240199,-702.40838956,0.00022871,2]
[367228624,1750708240209,-260.40020505,0.00022873,2]
[367228625,1750708240219,-500.0,0.00022873,2]
[367228626,1750708240229,-409.17458947,0.00022873,2]
[367228627,1750708240238,-426.14014895,0.00022873,2]
[367228628,1750708240248,-151.0,0.00022873,7]
[367228629,1750708240257,-151.0,0.00022873,7]
[367228630,1750708240267,-151.0,0.00022873,7]
[367228631,1750708240276,-151.0,0.00022873,7]
[367228632,1750708240285,-291.271541,0.00022873,7]
[367228633,1750708240295,-291.271541,0.00022873,7]
[367228634,1750708240305,-495.17293556,0.00022874,2]
[367228635,1750708240315,-155.0,0.00022875,2]
[367228636,1750708240326,-490.0,0.00022875,2]
[367228637,1750708240335,-496.18276942,0.00022875,2]
[367228638,1750708240345,-490.0,0.00022875,2]
[367228639,1750708240354,-507.05,0.00022875,2]
[367228640,1750708240364,-490.0,0.00022875,2]
[367228641,1750708240374,-490.0,0.00022875,2]
[367228642,1750708240384,-607.31680264,0.00022875,2]
[367228643,1750708240394,-490.0,0.00022875,2]
[367228644,1750708240404,-490.0,0.00022875,2]
[367228645,1750708240414,-490.0,0.00022875,2]
[367228646,1750708240424,-630.93,0.00022875,2]
[367228647,1750708240434,-490.0,0.00022875,2]
[367228648,1750708240444,-490.0,0.00022875,2]
[367228649,1750708240453,-490.0,0.00022875,2]
[367228650,1750708240463,-490.0,0.00022875,2]
[367228651,1750708240473,-597.8,0.00022875,2]
[367228652,1750708240482,-490.0,0.00022875,2]
[367228653,1750708240492,-558.6,0.00022875,2]
[367228654,1750708240501,-1025.14,0.00022875,2]
[367228655,1750708240511,-490.0,0.00022875,2]
[367228656,1750708240521,-490.0,0.00022875,2]
[367228657,1750708240532,-601.35,0.00022875,2]
[367228658,1750708240542,-773.96,0.00022875,2]
[367228659,1750708240551,-490.0,0.00022875,2]
[367228660,1750708240561,-607.36,0.00022875,2]
[367228661,1750708240570,-490.0,0.00022875,2]
[367228662,1750708240581,-490.0,0.00022875,2]
[367228663,1750708240591,-490.0,0.00022875,2]
[367228664,1750708240600,-490.0,0.00022875,2]
[367228665,1750708240610,-490.0,0.00022875,2]
[367228666,1750708240620,-493.6084318,0.00022875,2]
[367228667,1750708240630,-1440.61,0.00022875,2]
[367228668,1750708240639,-492.69904873,0.00022875,2]
[367228669,1750708240649,-490.0,0.00022875,2]
[367228670,1750708240659,-490.0,0.00022875,2]
[367228671,1750708240668,-490.0,0.00022875,2]
[367228672,1750708240678,-490.0,0.00022875,2]
[367228673,1750708240688,-491.57142066,0.00022875,2]
[367228674,1750708240698,-490.0,0.00022875,2]
[367228675,1750708240708,-490.0,0.00022875,2]
[367228676,1750708240718,-490.0,0.00022875,2]
[367228677,1750708240727,-490.0,0.00022875,2]
[367228678,1750708240736,-490.0,0.00022875,2]
[367228679,1750708240744,-490.0,0.00022875,2]
[367228680,1750708240752,-490.0,0.00022875,2]
[367228681,1750708240762,-490.0,0.00022875,2]
[367228682,1750708240771,-490.0,0.00022875,2]
[367228683,1750708240781,-490.0,0.00022875,2]
[367228684,1750708240793,-864.66,0.00022875,2]
[367228685,1750708240802,-490.0,0.00022875,2]
[367228686,1750708240811,-490.0,0.00022875,2]
[367228687,1750708240821,-490.0,0.00022875,2]
[367228688,1750708240831,-490.0,0.00022875,2]
[367228689,1750708240840,-490.0,0.00022875,2]
[367228690,1750708240850,-490.0,0.00022875,2]
[367228691,1750708240859,-151.0,0.00022875,7]
[367228692,1750708240870,-492.93768147,0.00022875,2]
[367228693,1750708240879,-490.0,0.00022875,2]
[367228694,1750708240889,-151.0,0.00022875,7]
[367228695,1750708240899,-490.0,0.00022875,2]
[367228696,1750708240909,-490.0,0.00022875,2]
[367228697,1750708240919,-151.0,0.00022875,7]
[367228698,1750708240928,-504.98,0.00022875,2]
[367228699,1750708240939,-800.04,0.00022875,2]
[367228700,1750708240948,-193.7288707,0.00022875,2]
[367228701,1750708240957,-629.17,0.00022875,2]
[367228702,1750708240967,-490.0,0.00022875,2]
[367228703,1750708240976,-490.0,0.00022875,2]
[367228704,1750708240985,-490.0,0.00022875,2]
[367228705,1750708240995,-847.73,0.00022875,2]
[367228706,1750708241005,-1582.37,0.00022875,2]
[367228707,1750708241014,-1058.39,0.00022875,2]
[367228708,1750708241023,-490.0,0.00022875,2]
[367228709,1750708241032,-500.0,0.00022875,2]
[367228710,1750708241042,-1770.13,0.00022875,2]
[367228711,1750708241052,-1809.79,0.00022875,2]
[367228712,1750708241063,-490.0,0.00022875,2]
[367228713,1750708241072,-951.65,0.00022875,2]
[367228714,1750708241082,-880.72,0.00022875,2]
[367228715,1750708241091,-1428.28,0.00022875,2]
[367228716,1750708241103,-1987.34,0.00022875,2]
[367228717,1750708241113,-425.077829,0.00022875,7]
[367228718,1750708241124,-151.0,0.00022875,7]
[367228719,1750708241134,-1872.66,0.00022875,2]
[367228720,1750708241145,-3094.26,0.00022875,2]
[367228721,1750708241468,-708.29,0.00022875,2]
[367228722,1750708241477,-1993.23,0.00022875,2]
[367228723,1750708241486,-659.91,0.00022875,2]
[367228724,1750708241495,-1080.66,0.00022875,2]
[367228725,1750708241505,-1392.07,0.00022875,2]
[367228726,1750708241515,-1161.25,0.00022875,2]
[367228727,1750708241524,-905.27,0.00022875,2]
[367228728,1750708241534,-2810.61,0.00022875,2]
[367228729,1750708241543,-151.0,0.00022875,7]
[367228730,1750708241553,-356.50857774,0.00022875,2]
[367228731,1750708241562,-490.0,0.00022875,2]
[367228732,1750708241573,-257.21205508,0.00022875,2]
[367228733,1750708241583,-2056.55,0.00022875,2]
[367228734,1750708241593,-490.0,0.00022875,2]
[367228735,1750708241602,-716.88,0.00022875,2]
[367228736,1750708241612,-563.66889474,0.00022875,2]
[367228737,1750708241621,-1211.37,0.00022875,2]
[367228738,1750708241631,-1023.69,0.00022875,2]
[367228739,1750708241641,-633.98,0.00022875,2]
[367228740,1750708241651,-490.0,0.00022875,2]
[367228741,1750708241660,-1134.96,0.00022875,2]
[367228742,1750708241670,-490.0,0.00022875,2]
[367228743,1750708241680,-1840.94,0.00022875,2]
[367228744,1750708241689,-490.0,0.00022875,2]
[367228745,1750708241698,-1949.25,0.00022875,2]
[367228746,1750708241708,-1690.5,0.00022875,2]
[367228747,1750708241717,-1875.13,0.00022875,2]
[367228748,1750708241727,-1362.67,0.00022875,2]
[367228749,1750708241736,-977.27,0.00022875,2]
[367228750,1750708241746,-1086.69,0.00022875,2]
[367228751,1750708241755,-768.07,0.00022875,2]
[367228752,1750708241765,-490.0,0.00022875,2]
[367228753,1750708241775,-5300.34,0.00022875,2]
[367228754,1750708241784,-704.41,0.00022875,2]
[367228755,1750708241793,-1418.85,0.00022875,2]
[367228756,1750708241803,-490.0,0.00022875,2]
[367228757,1750708241812,-1198.58,0.00022875,2]
[367228758,1750708241821,-490.0,0.00022875,2]
[367228759,1750708241831,-490.0,0.00022875,2]
[367228760,1750708241841,-212.735661,0.00022875,7]
[367228761,1750708241850,-1966.46,0.00022875,2]
[367228762,1750708241859,-563.75,0.00022875,2]
[367228763,1750708241868,-2907.92,0.00022875,2]
[367228764,1750708241878,-2037.54,0.00022875,2]
[367228765,1750708241888,-1673.9,0.00022875,2]
[367228766,1750708241897,-977.05,0.00022875,2]
[367228767,1750708241907,-547.88,0.00022875,2]
[367228768,1750708241916,-720.91,0.00022875,2]
[367228769,1750708241926,-2960.99,0.00022875,2]
[367228770,1750708241936,-1186.53,0.00022875,2]
[367228771,1750708241945,-1525.07,0.00022875,2]
[367228772,1750708241954,-864.02,0.00022875,2]
[367228773,1750708241964,-490.0,0.00022876,2]
[367228774,1750708241973,-490.0,0.00022876,2]
[367228775,1750708241983,-490.0,0.00022876,2]
[367228776,1750708241994,-490.0,0.00022876,2]
[367228777,1750708242003,-567.06592496,0.00022876,2]
[367228778,1750708242013,-364.14202483,0.00022876,2]
[367228779,1750708242022,-643.83,0.00022876,2]
[367228780,1750708242032,-543.06,0.00022876,2]
[367228781,1750708242041,-490.0,0.00022876,2]
[367228782,1750708242051,-490.0,0.00022876,2]
[367228783,1750708242060,-490.0,0.00022876,2]
[367228784,1750708242069,-490.0,0.00022876,2]
[367228785,1750708242079,-490.97121393,0.00022876,2]
[367228786,1750708242088,-490.0,0.00022876,2]
[367228787,1750708242099,-490.0,0.00022876,2]
[367228788,1750708242114,-490.0,0.00022876,2]
[367228789,1750708242124,-428.14300937,0.00022876,2]
[367228790,1750708242133,-490.0,0.00022876,2]
[367228791,1750708242142,-490.37,0.00022876,2]
[367228792,1750708242154,-490.0,0.00022876,2]
[367228793,1750708242164,-490.0,0.00022876,2]
[367228794,1750708242175,-490.0,0.00022876,2]
[367228795,1750708242190,-490.0,0.00022876,2]
[367228796,1750708242200,-490.0,0.00022876,2]
[367228797,1750708242210,-490.0,0.00022876,2]